fUST/lending_fUST_20250628
["ID","MTS","AMOUNT","RATE_DAILY","PERIOD"]
[368170305,1751046653042,-460.0,0.00021369,2]
[368170306,1751046653051,-460.0,0.00021369,2]
[368170307,1751046653061,-151.0,0.00021369,2]
[368170308,1751046653077,-622.33,0.00021369,2]
[368170309,1751046653087,-151.0,0.00021369,2]
[368170310,1751046653097,-151.0,0.00021369,2]
[368170311,1751046653107,-151.0,0.00021369,2]
[368170312,1751046653116,-151.0,0.00021369,2]
[368170313,1751046653126,-151.0,0.00021369,2]
[368170314,1751046653135,-460.0,0.00021369,2]
[368170315,1751046653144,-151.0,0.00021369,2]
[368170316,1751046653154,-151.0,0.00021369,2]
[368170317,1751046653163,-197.1756,0.00021369,2]
[368170318,1751046653173,-151.0,0.00021369,2]
[368170319,1751046653182,-197.1756,0.00021369,2]
[368170320,1751046653192,-532.83766857,0.00021369,2]
[368170321,1751046653202,-151.0,0.00021369,2]
[368170322,1751046653211,-657.78,0.00021369,2]
[368170323,1751046653221,-334.430711,0.00021369,2]
[368170324,1751046653230,-496.85,0.00021369,2]
[368170325,1751046653239,-334.430711,0.00021369,2]
[368170326,1751046653249,-460.0,0.00021369,2]
[368170327,1751046653259,-151.0,0.00021369,2]
[368170328,1751046653268,-460.0,0.00021369,2]
[368170329,1751046653278,-568.55,0.00021369,2]
[368170330,1751046653288,-815.804757,0.00021369,2]
[368170331,1751046653298,-306.158412,0.00021369,2]
[368170332,1751046653308,-642.51500719,0.00021369,2]
[368170333,1751046653325,-173.28974981,0.00021369,2]
[368170334,1751046653334,-306.158412,0.00021369,2]
[368170335,1751046653344,-460.0,0.00021369,2]
[368170336,1751046653353,-460.0,0.00021369,2]
[368170337,1751046653363,-177.23407,0.00021369,2]
[368170338,1751046653373,-504.12,0.00021369,2]
[368170339,1751046653383,-177.23407,0.00021369,2]
[368170340,1751046653392,-151.0,0.00021369,2]
[368170341,1751046653402,-151.0,0.00021369,2]
[368170342,1751046653412,-151.0,0.00021369,2]
[368170343,1751046653421,-1281.15,0.00021369,2]
[368170344,1751046653431,-3619.92,0.00021369,2]
[368170345,1751046653440,-151.0,0.00021369,2]
[368170346,1751046653450,-460.0,0.00021369,2]
[368170347,1751046653459,-4046.67,0.00021369,2]
[368170348,1751046653469,-1459.3,0.00021369,2]
[368170349,1751046653478,-650.14,0.00021369,2]
[368170350,1751046653488,-1333.17,0.00021369,2]
[368170351,1751046653497,-460.0,0.00021369,2]
[368170352,1751046653507,-233.51525328,0.00021369,2]
[368170353,1751046653527,-246.45474672,0.00021369,2]
[368170354,1751046653536,-460.0,0.00021369,2]
[368170355,1751046653546,-2029.99,0.00021369,2]
[368170356,1751046653555,-524.0,0.00021369,2]
[368170357,1751046653568,-460.0,0.00021369,2]
[368170358,1751046653578,-999.78,0.00021369,2]
[368170359,1751046653587,-524.5,0.00021369,2]
[368170360,1751046653597,-1574.26,0.00021369,2]
[368170361,1751046653606,-768.69,0.00021369,2]
[368170362,1751046653616,-477.58,0.00021369,2]
[368170363,1751046653626,-1267.96,0.00021369,2]
[368170364,1751046653729,-492.55,0.00021369,2]
[368170365,1751046653755,-489.44,0.00021369,2]
[368170366,1751046653766,-583.94,0.00021369,2]
[368170367,1751046653776,-460.0,0.00021369,2]
[368170368,1751046653786,-358.75722486,0.00021369,2]
[368170369,1751046653796,-604.2,0.00021369,2]
[368170370,1751046653806,-460.0,0.00021369,2]
[368170371,1751046653818,-460.0,0.00021369,2]
[368170372,1751046653828,-1861.84,0.00021369,2]
[368170373,1751046653838,-774.45,0.00021369,2]
[368170374,1751046653849,-520.38,0.00021369,2]
[368170375,1751046653859,-663.49,0.00021369,2]
[368170376,1751046653869,-555.19,0.00021369,2]
[368170377,1751046653879,-2959.28,0.00021369,2]
[368170378,1751046653889,-213.26802843,0.00021369,2]
[368170379,1751046653902,-246.73197157,0.00021369,2]
[368170380,1751046653911,-1528.80589201,0.00021369,2]
[368170381,1751046653952,-460.0,0.00019178,2]
[368170382,1751046653961,-53.51410799,0.00021369,2]
[368170383,1751046653971,-5244.0,0.00021369,2]
[368170384,1751046653981,-460.0,0.00021369,2]
[368170385,1751046653991,-681.07,0.00021369,2]
[368170386,1751046654000,-460.0,0.00021369,2]
[368170387,1751046654010,-460.0,0.00021369,2]
[368170388,1751046654019,-598.8,0.00021369,2]
[368170389,1751046654029,-683.38,0.00021369,2]
[368170390,1751046654039,-1338.12,0.00021369,2]
[368170391,1751046654048,-3684.07,0.00021369,2]
[368170392,1751046654058,-460.0,0.00021369,2]
[368170393,1751046654068,-648.72,0.00021369,2]
[368170394,1751046654078,-962.44,0.00021369,2]
[368170395,1751046654087,-460.0,0.00021369,2]
[368170396,1751046654097,-460.0,0.00021369,2]
[368170397,1751046654106,-1112.38,0.00021369,2]
[368170398,1751046654116,-460.0,0.00021369,2]
[368170399,1751046654125,-4291.54679352,0.00021369,2]
[368170400,1751046654137,-290.52320648,0.00021369,2]
[368170401,1751046654146,-460.0,0.00021369,2]
[368170402,1751046654156,-291.51884093,0.00021369,2]
[368170403,1751046654168,-276.13115907,0.00021369,2]
[368170404,1751046654177,-676.90841765,0.00021369,2]
[368170412,1751047334803,164.638789,0.00013699,2]
[368170413,1751047435080,19835.361211,0.00018084,2]
[368170414,1751047435106,5064.638789,0.00018084,2]
[368170415,1751047496284,159.318675,0.00018096,2]
[368170417,1751047542142,-842.6594095,0.00018129,2]
[368170418,1751047542300,-326.5810118,0.00018246,2]
[368170419,1751047542321,-18.29309997,0.00018719,2]
[368170420,1751047558092,-135.03189637,0.00018719,2]
[368170421,1751047558114,-683.466058,0.00018738,2]
[368170422,1751047558135,-153.34192971,0.00018819,2]
[368170423,1751047558156,-150.0,0.00018995,2]
[368170424,1751047558176,-285.91,0.00019168,3]
[368170425,1751047558198,-128.18924609,0.00019168,3]
[368170426,1751047596541,-479.73837824,0.00019077,2]
[368170427,1751047646123,-729.58075391,0.00019168,3]
[368170428,1751047646145,-300.0,0.00019172,2]
[368170429,1751047646165,-500.0,0.00019173,2]
[368170430,1751047646188,-268.56743899,0.00019173,2]
[368170431,1751047647185,-220.77158585,0.00019173,2]
[368170432,1751047760920,419.77108096,0.00019078,2]
[368170433,1751047806242,176.4608687,0.00018177,2]
[368170487,1751047837885,-418.0000021,0.00019168,3]
[368170494,1751047837939,-153.8199979,0.00019168,3]
[368170496,1751047837949,-500.0,0.00019173,2]
[368170498,1751047837960,-300.0,0.00019176,2]
[368170500,1751047837971,-300.0,0.00019176,2]
[368170503,1751047837986,-300.0,0.00019176,2]
[368170505,1751047837998,-300.0,0.00019176,2]
[368170508,1751047838010,-1200.0,0.00019176,2]
[368170510,1751047838022,-500.0,0.00019177,2]
[368170512,1751047838034,-500.0,0.00019177,2]
[368170514,1751047838046,-500.0,0.00019177,2]
[368170516,1751047838057,-500.0,0.00019177,2]
[368170519,1751047838069,-500.0,0.00019177,2]
[368170521,1751047838080,-500.0,0.00019177,2]
[368170523,1751047838092,-500.0,0.00019177,2]
[368170525,1751047838105,-500.0,0.00019177,2]
[368170528,1751047838116,-500.0,0.00019177,2]
[368170530,1751047838128,-337.09424582,0.00019177,2]
[368170532,1751047838140,-211.62935071,0.00019177,2]
[368170534,1751047838151,-500.0,0.00019177,2]
[368170536,1751047838163,-500.0,0.00019177,2]
[368170539,1751047838178,-460.94235327,0.00019177,2]
[368170541,1751047838189,-411.07844502,0.00019177,2]
[368170543,1751047838202,-500.0,0.00019177,2]
[368170545,1751047838214,-500.0,0.00019177,2]
[368170548,1751047838225,-406.19301482,0.00019177,2]
[368170550,1751047838238,-500.0,0.00019177,2]
[368170552,1751047838249,-500.0,0.00019177,2]
[368170554,1751047838259,-298.80527355,0.00019177,2]
[368170556,1751047838270,-500.0,0.00019177,2]
[368170558,1751047838281,-500.0,0.00019177,2]
[368170560,1751047838292,-500.0,0.00019177,2]
[368170563,1751047838303,-500.0,0.00019177,2]
[368170565,1751047838314,-500.0,0.00019177,2]
[368170567,1751047838326,-500.0,0.00019177,2]
[368170569,1751047838337,-500.0,0.00019177,2]
[368170571,1751047838348,-500.0,0.00019177,2]
[368170573,1751047838359,-500.0,0.00019177,2]
[368170576,1751047838370,-500.0,0.00019177,2]
[368170578,1751047838380,-337.83280203,0.00019177,2]
[368170580,1751047838391,-500.0,0.00019177,2]
[368170582,1751047838402,-500.0,0.00019177,2]
[368170584,1751047838413,-174.61599578,0.00019177,2]
[368170589,1751047838444,-325.38400422,0.00019177,2]
[368170591,1751047838454,-500.0,0.00019177,2]
[368170593,1751047838466,-268.95796601,0.00019177,2]
[368170595,1751047838477,-500.0,0.00019177,2]
[368170597,1751047838488,-500.0,0.00019177,2]
[368170600,1751047838499,-500.0,0.00019177,2]
[368170602,1751047838510,-500.0,0.00019177,2]
[368170604,1751047838521,-500.0,0.00019177,2]
[368170606,1751047838533,-500.0,0.00019177,2]
[368170608,1751047838542,-500.0,0.00019177,2]
[368170610,1751047838551,-500.0,0.00019177,2]
[368170612,1751047838560,-500.0,0.00019177,2]
[368170614,1751047838570,-500.0,0.00019177,2]
[368170616,1751047838579,-500.0,0.00019177,2]
[368170618,1751047838588,-500.0,0.00019177,2]
[368170640,1751047838779,-258.07390534,0.00019177,2]
[368170642,1751047838789,-507.58761541,0.00019177,2]
[368170644,1751047838798,-500.0,0.00019177,2]
[368170646,1751047838807,-500.0,0.00019177,2]
[368170648,1751047838817,-500.0,0.00019177,2]
[368170650,1751047838826,-500.0,0.00019177,2]
[368170652,1751047838836,-465.42101721,0.00019177,2]
[368170654,1751047838846,-518.25533123,0.00019178,2]
[368170656,1751047838855,-460.0,0.00019178,2]
[368170658,1751047838865,-250.35716426,0.00019178,2]
[368170660,1751047838874,-460.0,0.00019178,2]
[368170662,1751047838884,-460.0,0.00019178,2]
[368170664,1751047838893,-500.0,0.00019178,2]
[368170666,1751047838904,-400.54875,0.00019178,2]
[368170668,1751047838913,-271.96392025,0.00019178,2]
[368170670,1751047838923,-460.0,0.00019178,2]
[368170672,1751047838932,-460.0,0.00019178,2]
[368170674,1751047838942,-460.0,0.00019178,2]
[368170676,1751047838951,-460.0,0.00019178,2]
[368170678,1751047838961,-460.0,0.00019178,2]
[368170680,1751047838971,-346.62767756,0.00019178,2]
[368170682,1751047838980,-460.0,0.00019178,2]
[368170684,1751047838990,-460.0,0.00019178,2]
[368170686,1751047838999,-460.0,0.00019178,2]
[368170688,1751047839009,-460.0,0.00019178,2]
[368170690,1751047839018,-280.15739573,0.00019178,2]
[368170692,1751047839028,-302.48210599,0.00019178,2]
[368170694,1751047839038,-460.0,0.00019178,2]
[368170696,1751047839047,-460.0,0.00019178,2]
[368170698,1751047839056,-460.0,0.00019178,2]
[368170700,1751047839065,-460.0,0.00019178,2]
[368170702,1751047839075,-460.0,0.00019178,2]
[368170704,1751047839085,-460.0,0.00019178,2]
[368170706,1751047839093,-460.0,0.00019178,2]
[368170708,1751047839103,-460.0,0.00019178,2]
[368170710,1751047839112,-460.0,0.00019178,2]
[368170712,1751047839121,-460.0,0.00019178,2]
[368170714,1751047839130,-444.49377865,0.00019178,2]
[368170716,1751047839139,-460.0,0.00019178,2]
[368170718,1751047839148,-460.0,0.00019178,2]
[368170720,1751047839158,-460.0,0.00019178,2]
[368170722,1751047839171,-460.0,0.00019178,2]
[368170724,1751047839181,-460.0,0.00019178,2]
[368170726,1751047839190,-319.0,0.00019178,2]
[368170728,1751047839201,-460.0,0.00019178,2]
[368170730,1751047839211,-371.11325754,0.00019178,2]
[368170732,1751047839220,-491.74826938,0.00019178,2]
[368170734,1751047839230,-512.28834041,0.00019178,2]
[368170736,1751047839240,-460.0,0.00019178,2]
[368170738,1751047839251,-460.0,0.00019178,2]
[368170740,1751047839261,-460.0,0.00019178,2]
[368170742,1751047839270,-460.0,0.00019178,2]
[368170744,1751047839280,-460.0,0.00019178,2]
[368170746,1751047839289,-460.0,0.00019178,2]
[368170748,1751047839298,-460.0,0.00019178,2]
[368170750,1751047839307,-460.0,0.00019178,2]
[368170752,1751047839318,-460.0,0.00019178,2]
[368170754,1751047839327,-58.1796459,0.00019178,2]
[368170774,1751047839505,-199.79424366,0.00019178,2]
[368171153,1751047843133,-259.88611044,0.00019178,2]
[368171155,1751047843143,-460.0,0.00019178,2]
[368171157,1751047843152,-13.07143719,0.00019178,2]
[368171207,1751047843649,-446.92856281,0.00019178,2]
[368171209,1751047843659,-173.48820724,0.00019178,2]
[368171212,1751047843670,-286.51179276,0.00019178,2]
[368171214,1751047843679,-460.0,0.00019178,2]
[368171216,1751047843688,-460.0,0.00019178,2]
[368171218,1751047843698,-460.0,0.00019178,2]
[368171220,1751047843707,-461.71762502,0.00019178,2]
[368171222,1751047843716,-460.0,0.00019178,2]
[368171224,1751047843725,-460.0,0.00019178,2]
[368171226,1751047843735,-460.0,0.00019178,2]
[368171228,1751047843744,-460.0,0.00019178,2]
[368171230,1751047843754,-460.0,0.00019178,2]
[368171232,1751047843763,-575.73,0.00019178,2]
[368171234,1751047843772,-460.0,0.00019178,2]
[368171235,1751047843781,-460.0,0.00019178,2]
[368171237,1751047843790,-460.0,0.00019178,2]
[368171239,1751047843799,-460.0,0.00019178,2]
[368171241,1751047843809,-460.0,0.00019178,2]
[368171243,1751047843818,-511.46,0.00019178,2]
[368171245,1751047843828,-460.0,0.00019178,2]
[368171247,1751047843837,-437.22660619,0.00019178,2]
[368171249,1751047843846,-231.44,0.00019178,2]
[368171251,1751047843856,-460.0,0.00019178,2]
[368171253,1751047843865,-460.0,0.00019178,2]
[368171255,1751047843874,-460.0,0.00019178,2]
[368171257,1751047843884,-460.0,0.00019178,2]
[368171259,1751047843896,-460.0,0.00019178,2]
[368171262,1751047843906,-460.0,0.00019178,2]
[368171264,1751047843915,-460.0,0.00019178,2]
[368171266,1751047843925,-460.0,0.00019178,2]
[368171268,1751047843936,-460.0,0.00019178,2]
[368171270,1751047843945,-460.0,0.00019178,2]
[368171272,1751047843954,-460.0,0.00019178,2]
[368171274,1751047843963,-460.0,0.00019178,2]
[368171275,1751047843972,-460.0,0.00019178,2]
[368171277,1751047843982,-460.0,0.00019178,2]
[368171279,1751047843991,-460.0,0.00019178,2]
[368171281,1751047844000,-460.0,0.00019178,2]
[368171283,1751047844010,-556.90570204,0.00019178,2]
[368171285,1751047844019,-575.92,0.00019178,2]
[368171287,1751047844029,-460.0,0.00019178,2]
[368171289,1751047844038,-460.0,0.00019178,2]
[368171291,1751047844047,-1000.0,0.00019178,2]
[368171293,1751047844057,-460.0,0.00019178,2]
[368171295,1751047844066,-528.85195199,0.00019178,2]
[368171297,1751047844075,-460.0,0.00019178,2]
[368171299,1751047844085,-460.0,0.00019178,2]
[368171301,1751047844094,-460.0,0.00019178,2]
[368171303,1751047844103,-460.0,0.00019178,2]
[368171305,1751047844113,-460.0,0.00019178,2]
[368171307,1751047844122,-550.93,0.00019178,2]
[368171309,1751047844131,-460.0,0.00019178,2]
[368171311,1751047844142,-312.35563035,0.00019178,2]
[368171313,1751047844152,-460.0,0.00019178,2]
[368171314,1751047844162,-500.0,0.00019178,2]
[368171315,1751047844174,-500.0,0.00019178,2]
[368171316,1751047844184,-500.0,0.00019178,2]
[368171317,1751047844193,-460.0,0.00019178,2]
[368171318,1751047844204,-400.0,0.00019178,2]
[368171319,1751047844214,-460.0,0.00019178,2]
[368171320,1751047844223,-460.0,0.00019178,2]
[368171321,1751047844232,-460.0,0.00019178,2]
[368171322,1751047844242,-460.0,0.00019178,2]
[368171323,1751047844252,-460.0,0.00019178,2]
[368171324,1751047844261,-460.0,0.00019178,2]
[368171325,1751047844270,-421.44755692,0.00019178,2]
[368171326,1751047844280,-460.0,0.00019178,2]
[368171327,1751047844289,-460.0,0.00019178,2]
[368171328,1751047844298,-581.3,0.00019178,2]
[368171329,1751047844307,-355.59779378,0.00019178,2]
[368171330,1751047844315,-460.0,0.00019178,2]
[368171331,1751047844325,-460.0,0.00019178,2]
[368171333,1751047844335,-460.0,0.00019178,2]
[368171335,1751047844344,-460.0,0.00019178,2]
[368171337,1751047844353,-460.0,0.00019178,2]
[368171339,1751047844362,-460.0,0.00019178,2]
[368171341,1751047844372,-408.29384029,0.00019178,2]
[368171343,1751047844381,-460.0,0.00019178,2]
[368171345,1751047844390,-154.74053132,0.00019178,2]
[368171347,1751047844399,-460.0,0.00019178,2]
[368171349,1751047844409,-460.0,0.00019178,2]
[368171351,1751047844418,-460.0,0.00019178,2]
[368171353,1751047844427,-460.0,0.00019178,2]
[368171355,1751047844437,-341.08,0.00019178,2]
[368171357,1751047844446,-460.0,0.00019178,2]
[368171359,1751047844455,-561.32,0.00019178,2]
[368171361,1751047844465,-460.0,0.00019178,2]
[368171363,1751047844474,-460.0,0.00019178,2]
[368171365,1751047844483,-460.0,0.00019178,2]
[368171367,1751047844492,-460.0,0.00019178,2]
[368171369,1751047844501,-457.6814358,0.00019178,2]
[368171371,1751047844511,-460.0,0.00019178,2]
[368171373,1751047844520,-460.0,0.00019178,2]
[368171375,1751047844529,-602.35853411,0.00019178,2]
[368171377,1751047844539,-461.67502824,0.00019178,2]
[368171379,1751047844549,-460.0,0.00019178,2]
[368171381,1751047844559,-432.84520202,0.00019178,2]
[368171383,1751047844568,-460.0,0.00019178,2]
[368171385,1751047844577,-157.45379476,0.00019178,2]
[368171387,1751047844586,-217.06,0.00019178,2]
[368171389,1751047844595,-460.0,0.00019178,2]
[368171391,1751047844604,-460.0,0.00019178,2]
[368171393,1751047844613,-460.0,0.00019178,2]
[368171395,1751047844623,-460.0,0.00019178,2]
[368171397,1751047844632,-460.0,0.00019178,2]
[368171398,1751047844642,-460.0,0.00019178,2]
[368171399,1751047844651,-197.58,0.00019178,2]
[368171401,1751047844660,-460.0,0.00019178,2]
[368171402,1751047844669,-490.91939001,0.00019178,2]
[368171404,1751047844679,-460.0,0.00019178,2]
[368171406,1751047844689,-460.0,0.00019178,2]
[368171408,1751047844698,-460.0,0.00019178,2]
[368171410,1751047844708,-460.0,0.00019178,2]
[368171412,1751047844718,-460.0,0.00019178,2]
[368171413,1751047844728,-546.65,0.00019178,2]
[368171415,1751047844737,-460.0,0.00019178,2]
[368171417,1751047844746,-460.0,0.00019178,2]
[368171419,1751047844755,-460.0,0.00019178,2]
[368171421,1751047844765,-460.0,0.00019178,2]
[368171423,1751047844774,-460.0,0.00019178,2]
[368171425,1751047844783,-460.0,0.00019178,2]
[368171427,1751047844792,-460.0,0.00019178,2]
[368171429,1751047844801,-460.0,0.00019178,2]
[368171432,1751047844812,-460.0,0.00019178,2]
[368171434,1751047844822,-185.72015618,0.00019178,2]
[368171435,1751047844832,-460.0,0.00019178,2]
[368171438,1751047844842,-460.0,0.00019178,2]
[368171439,1751047844852,-460.0,0.00019178,2]
[368171441,1751047844861,-460.0,0.00019178,2]
[368171443,1751047844870,-440.462,0.00019178,2]
[368171445,1751047844880,-461.75177177,0.00019178,2]
[368171447,1751047844889,-460.0,0.00019178,2]
[368171449,1751047844899,-206.04835295,0.00019178,2]
[368171451,1751047844908,-379.19118822,0.00019178,2]
[368171453,1751047844917,-460.0,0.00019178,2]
[368171455,1751047844926,-432.79412721,0.00019178,2]
[368171457,1751047844936,-463.78861951,0.00019178,2]
[368171459,1751047844945,-460.0,0.00019178,2]
[368171461,1751047844954,-460.0,0.00019178,2]
[368171463,1751047844964,-460.0,0.00019178,2]
[368171465,1751047844974,-460.0,0.00019178,2]
[368171467,1751047844983,-460.0,0.00019178,2]
[368171469,1751047844992,-316.66507704,0.00019178,2]
[368171471,1751047845001,-460.0,0.00019178,2]
[368171473,1751047845011,-460.0,0.00019178,2]
[368171475,1751047845021,-3210.76,0.00019178,2]
[368171477,1751047845030,-1086.47,0.00019178,2]
[368171479,1751047845040,-460.0,0.00019178,2]
[368171481,1751047845050,-460.0,0.00019178,2]
[368171483,1751047845059,-3374.19,0.00019178,2]
[368171485,1751047845068,-243.15,0.00019178,2]
[368171487,1751047845078,-460.0,0.00019178,2]
[368171489,1751047845087,-460.0,0.00019178,2]
[368171491,1751047845097,-595.09,0.00019178,2]
[368171493,1751047845107,-1249.26,0.00019178,2]
[368171495,1751047845116,-460.0,0.00019178,2]
[368171497,1751047845125,-460.0,0.00019178,2]
[368171499,1751047845134,-460.0,0.00019178,2]
[368171501,1751047845143,-258.95,0.00019178,2]
[368171503,1751047845152,-460.0,0.00019178,2]
[368171505,1751047845162,-460.0,0.00019178,2]
[368171507,1751047845175,-460.0,0.00019178,2]
[368171509,1751047845185,-460.0,0.00019178,2]
[368171511,1751047845194,-460.0,0.00019178,2]
[368171513,1751047845203,-460.0,0.00019178,2]
[368171515,1751047845213,-1777.97,0.00019178,2]
[368171517,1751047845222,-460.0,0.00019178,2]
[368171519,1751047845232,-460.0,0.00019178,2]
[368171521,1751047845242,-460.0,0.00019178,2]
[368171523,1751047845252,-460.0,0.00019178,2]
[368171525,1751047845262,-460.0,0.00019178,2]
[368171527,1751047845271,-460.0,0.00019178,2]
[368171529,1751047845281,-460.0,0.00019178,2]
[368171531,1751047845290,-460.0,0.00019178,2]
[368171533,1751047845299,-460.0,0.00019178,2]
[368171535,1751047845309,-1081.49,0.00019178,2]
[368171537,1751047845319,-513.24,0.00019178,2]
[368171539,1751047845328,-460.0,0.00019178,2]
[368171541,1751047845338,-460.0,0.00019178,2]
[368171543,1751047845347,-576.57480643,0.00019178,2]
[368171545,1751047845356,-1394.77,0.00019178,2]
[368171547,1751047845365,-460.0,0.00019178,2]
[368171550,1751047845375,-460.0,0.00019178,2]
[368171552,1751047845384,-430.0,0.00019178,2]
[368171554,1751047845393,-460.0,0.00019178,2]
[368171556,1751047845402,-460.0,0.00019178,2]
[368171558,1751047845411,-606.18,0.00019178,2]
[368171559,1751047845420,-460.0,0.00019178,2]
[368171561,1751047845429,-460.0,0.00019178,2]
[368171563,1751047845439,-460.0,0.00019178,2]
[368171565,1751047845448,-460.0,0.00019178,2]
[368171567,1751047845457,-460.0,0.00019178,2]
[368171569,1751047845466,-460.0,0.00019178,2]
[368171571,1751047845475,-460.0,0.00019178,2]
[368171574,1751047845485,-563.24,0.00019178,2]
[368171576,1751047845494,-460.0,0.00019178,2]
[368171586,1751047845612,-935.55,0.00019178,2]
[368171587,1751047845625,-565.83,0.00019178,2]
[368171588,1751047845635,-534.77,0.00019178,2]
[368171589,1751047845644,-460.0,0.00019178,2]
[368171590,1751047845653,-460.0,0.00019178,2]
[368171592,1751047845663,-460.0,0.00019178,2]
[368171593,1751047845672,-461.3544805,0.00019178,2]
[368171595,1751047845681,-460.0,0.00019178,2]
[368171597,1751047845690,-563.93,0.00019178,2]
[368171599,1751047845699,-500.0,0.00019178,2]
[368171601,1751047845708,-460.0,0.00019178,2]
[368171603,1751047845717,-460.0,0.00019178,2]
[368171604,1751047845726,-585.1,0.00019178,2]
[368171606,1751047845735,-420.0,0.00019178,2]
[368171608,1751047845745,-460.0,0.00019178,2]
[368171610,1751047845754,-460.0,0.00019178,2]
[368171612,1751047845763,-460.0,0.00019178,2]
[368171614,1751047845773,-460.0,0.00019178,2]
[368171615,1751047845782,-460.0,0.00019178,2]
[368171617,1751047845792,-1690.94,0.00019178,2]
[368171618,1751047845802,-1396.81,0.00019178,2]
[368171619,1751047845813,-737.91,0.00019178,2]
[368171620,1751047845823,-613.2,0.00019178,2]
[368171622,1751047845834,-586.4,0.00019178,2]
[368171624,1751047845844,-662.31,0.00019178,2]
[368171626,1751047845853,-460.0,0.00019178,2]
[368171628,1751047845863,-460.0,0.00019178,2]
[368171630,1751047845872,-429.49,0.00019178,2]
[368171632,1751047845883,-460.0,0.00019178,2]
[368171633,1751047845892,-460.0,0.00019178,2]
[368171635,1751047845902,-460.0,0.00019178,2]
[368171637,1751047845911,-460.0,0.00019178,2]
[368171639,1751047845920,-265.25136343,0.00019178,2]
[368171640,1751047845930,-460.0,0.00019178,2]
[368171641,1751047845939,-460.0,0.00019178,2]
[368171642,1751047845948,-460.0,0.00019178,2]
[368171644,1751047845957,-460.0,0.00019178,2]
[368171645,1751047845967,-2675.77,0.00019178,2]
[368171646,1751047845976,-460.0,0.00019178,2]
[368171647,1751047845986,-460.0,0.00019178,2]
[368171648,1751047845995,-923.14,0.00019178,2]
[368171649,1751047846005,-460.0,0.00019178,2]
[368171650,1751047846014,-460.0,0.00019178,2]
[368171651,1751047846023,-4474.16,0.00019178,2]
[368171652,1751047846033,-460.0,0.00019178,2]
[368171653,1751047846043,-460.0,0.00019178,2]
[368171654,1751047846052,-460.0,0.00019178,2]
[368171655,1751047846061,-460.0,0.00019178,2]
[368171656,1751047846071,-460.0,0.00019178,2]
[368171657,1751047846080,-460.0,0.00019178,2]
[368171658,1751047846090,-460.0,0.00019178,2]
[368171659,1751047846099,-460.0,0.00019178,2]
[368171660,1751047846109,-460.0,0.00019178,2]
[368171661,1751047846118,-460.0,0.00019178,2]
[368171662,1751047846128,-460.0,0.00019178,2]
[368171663,1751047846137,-460.0,0.00019178,2]
[368171664,1751047846146,-609.54,0.00019178,2]
[368171665,1751047846156,-460.0,0.00019178,2]
[368171666,1751047846165,-460.0,0.00019178,2]
[368171667,1751047846178,-460.0,0.00019178,2]
[368171668,1751047846187,-460.0,0.00019178,2]
[368171669,1751047846196,-506.56,0.00019178,2]
[368171670,1751047846206,-1177.17,0.00019178,2]